Cogmind - Beta 16 @@@ ROGUE MODE // 2025.11.18 @ 15:06:32 Player: sweetandcool Result: Destroyed by H-55 Commando with Assault Rifle Performance ------------- Evolutions (2) 1000 Regions Visited (7) 1400 Robots Destroyed (27) 135 Value Destroyed (579) 579 Prototype IDs (26) 520 Alien Tech Used (0) 0 Bonus (341) 341 TOTAL SCORE: 3975 Bonus ------- Follower Combat Kills 41 Aligned with FarCom 300 Cogmind --------- Core Integrity 0/550 Matter 116/300 Energy 100/100 System Corruption 2% Temperature Cool (0) Movement Core (100) Ox1 Location -8/Materials Parts ------- > --- POWER (1) -------- (None) > --- PROPULSION (4) --- (None) > --- UTILITY (4) ------ Lightpack 2.0 > --- WEAPON (2) ------- (None) > --- INVENTORY (40) --- Deuterium Engine Deuterium Engine Cryofiber Web Minigun Flak Cannon Grenade Launcher Missile Launcher Peak State ------------ > --- POWER ------------ Light Nuclear Core > --- PROPULSION ------- Flight Unit Flight Unit Flight Unit > --- UTILITY ---------- Lightpack 2.0 Experimental Sensor Array > --- WEAPON ----------- Minigun Grenade Launcher > --- INVENTORY -------- Light Nuclear Core [Rating: 49] Favorites ----------- Power Light Ion Engine Engine Light Ion Engine Power Core Light Nuclear Core Propulsion Flight Unit Treads Light Treads Flight Unit Flight Unit Utility Large Storage Unit Device Experimental Sensor Array Storage Large Storage Unit Processor Visual Processing Unit Protection Medium Armor Plating Weapon Small Laser Energy Gun Small Laser Energy Cannon Light EM Pulse Cannon Ballistic Gun Light Assault Rifle Launcher Grenade Launcher Build | -11 -10 -10 -9 -9 -9 -8 -8 ------- Run | Yrd Mat Min Mat Min Exi Min Mat Slots Evolved 4 | . . . 2 . . . 2 Power . | . . . . . . . . Propulsion 2 | . . . 2 . . . . Utility 2 | . . . . . . . 2 Weapon . | . . . . . . . . Parts Attached 41 | 7 5 9 5 . 2 3 10 Power 9 | 1 1 2 2 . . 1 2 Engine 5 | 1 1 2 1 . . . . Core 4 | . . . 1 . . 1 2 Reactor . | . . . . . . . . Propulsion 10 | 2 . 2 2 . . . 4 Treads 2 | 2 . . . . . . . Leg . | . . . . . . . . Wheel . | . . . . . . . . Hover . | . . . . . . . . Flight 8 | . . 2 2 . . . 4 Utility 10 | 2 2 3 1 . . . 2 Device 1 | . . 1 . . . . . Storage 5 | 2 2 . . . . . 1 Processor 1 | . . . 1 . . . . Hackware . | . . . . . . . . Protection 3 | . . 2 . . . . 1 Artifact . | . . . . . . . . Weapon 12 | 2 2 2 . . 2 2 2 Energy Gun 3 | 1 . 1 . . 1 . . Energy Cannon 2 | . 1 . . . 1 . . Ballistic Gun 4 | 1 1 1 . . . 1 . Ballistic Cannon . | . . . . . . . . Launcher 3 | . . . . . . 1 2 Special Weapon . | . . . . . . . . Impact Weapon . | . . . . . . . . Slashing Weapon . | . . . . . . . . Piercing Weapon . | . . . . . . . . Special Melee Weapon . | . . . . . . . . Unidentified Prototypes 4 | . . 1 . . 2 . 1 Parts Lost 13 | . . 1 . . . 1 11 Power 3 | . . . . . . . 3 Propulsion 9 | . . 1 . . . 1 7 Utility 1 | . . . . . . . 1 Weapon . | . . . . . . . . Highest Loss Streak 6 | . . 1 . . . 1 6 To Critical Strikes . | . . . . . . . . Average Backups 8 | 2 9 12 5 5 3 2 3 Power 1 | . 1 1 1 1 . 1 . Propulsion 1 | 1 2 1 . . . . . Utility 3 | . 2 6 1 1 1 1 . Weapon 2 | . 2 3 2 3 1 . 2 Tool/Special . | . . . . . . . . Unused Backups 14 | . 2 5 1 . 1 . 5 Power 3 | . . 1 . . . . 2 Propulsion 2 | . 2 . . . . . . Utility 7 | . . 3 1 . 1 . 2 Weapon 2 | . . 1 . . . . 1 Tool/Special . | . . . . . . . . Average Slot Usage (%) 89 | . 98 93 81 100 99 95 45 Engine 8 | . 14 14 9 . . . . Core 3 | . . . 1 11 11 11 5 Treads 13 | . 26 20 . . . . . Flight 16 | . . 6 33 44 44 39 21 Device 4 | . . 1 11 11 11 11 4 Storage 14 | . 28 20 . . . . 8 Processor 2 | . . . 4 11 11 11 . Energy Gun 12 | . 14 16 11 11 10 8 . Energy Cannon 4 | . 4 10 . . . . . Ballistic Gun 5 | . 9 . 11 11 11 8 2 Peak Build Rating 49 | 7 9 15 21 21 29 24 49 Average Rating 16 | 4 8 9 17 21 23 23 42 On Entrance 15 | . 7 9 15 21 21 24 24 Avg Prop Armor Cover (%) . | . . . . . . . . Naked Turns . | . . . . . . . . Heaviest Build 48 | 18 48 48 10 10 10 12 17 Greatest Support 40 | 40 40 40 16 16 16 16 13 Greatest Overweight (x) 2 | . 1 1 . . . . 2 Average Overweight (x) . | . . . . . . . . Largest Inventory Capacity 40 | 8 15 15 5 5 5 5 40 Average Capacity 13 | 5 10 12 5 5 5 5 39 Most Carried 15 | 5 15 15 5 5 5 5 8 Average Carried 8 | 2 9 12 4 5 4 4 3 Final Capacity 40 | 8 15 5 5 5 5 5 40 Final Carried 15 | 4 15 5 5 5 5 5 7 Class Distribution -------------------- 64% | Mutant 18% | Scavenger-Sprinter 7% | Scavenger-Scout 4% | Hauler-Scout 3% | Scavenger-Mutant Dominant Class ---------------- Mutant | -10/Materials Mutant | -10/Mines Scavenger-Mutant | -9/Materials Scavenger-Sprinter | -9/Mines Scavenger-Sprinter | -9/Exiles Scavenger-Scout | -8/Mines Hauler-Scout | -8/Materials Resources | -11 -10 -10 -9 -9 -9 -8 -8 ----------- Run | Yrd Mat Min Mat Min Exi Min Mat Matter Collected 737 | 270 120 120 25 30 . 157 15 Remotely . | . . . . . . . . Salvage Created 722 | 58 357 87 25 . . 73 122 Parts 49 | 3 18 10 6 . . 4 8 Haulers Intercepted . | . . . . . . . . Recyclers Shooed 1 | . 1 . . . . . . Parts Field Recycled . | . . . . . . . . Retrieved Matter . | . . . . . . . . Parts Self-Destructed . | . . . . . . . . Prevented . | . . . . . . . . Parts Restored . | . . . . . . . . Kills | -11 -10 -10 -9 -9 -9 -8 -8 ------- Run | Yrd Mat Min Mat Min Exi Min Mat Combat Hostiles Destroyed 20 | . 6 6 1 . . 3 4 Guns 12 | . 6 4 1 . . . 1 Cannons 2 | . . 2 . . . . . AOE 6 | . . . . . . 3 3 Classes Destroyed 7 | 1 4 . . . . . 2 Builder 1 | . 1 . . . . . . Tunneler 1 | . . . . . . . 1 Recycler 3 | 1 2 . . . . . . Watcher 2 | . 1 . 1 . . . . Swarmer 10 | . 3 6 1 . . . . Cutter 1 | . . . . . . . 1 Grunt 9 | . 3 . . . . 3 3 Best Kill Streak 5 | 1 5 3 2 . . 3 4 Combat Bots Only 4 | . 4 3 1 . . 3 3 Max Kills in Single Turn 3 | 1 1 2 1 . . 1 3 Gunslinging 1 | . . 1 . . . . . Exploded 2 | . . . . . . 1 2 Melee . | . . . . . . . . Uniques/NPCs Destroyed . | . . . . . . . . Combat | -11 -10 -10 -9 -9 -9 -8 -8 -------- Run | Yrd Mat Min Mat Min Exi Min Mat Hostile Shots Fired 226 | . 44 46 8 . . 12 116 Missed 78 | . 12 13 1 . . 6 46 Hits 148 | . 32 33 7 . . 6 70 Melee 7 | . . . . . . . 7 Projectile 141 | . 32 33 7 . . 6 63 AOE 21 | . . 17 . . . . 4 Critical Strikes 6 | . . 1 . . . . 5 Damage Taken 2562 | . 340 661 57 . . 144 1360 Core 873 | . 60 182 22 . . 55 554 Absorbed by Shields . | . . . . . . . . Regen/Repaired (Parts) 62 | . 62 . . . . . . Core Remaining (%) 61 | 100 . 3 . . . 80 . Volleys Fired 80 | 7 30 15 7 . . 10 11 Largest 2 | 1 2 2 2 . . 1 1 Hottest 105 | 40 63 105 85 . . 30 36 Shots Fired 126 | 7 60 24 14 . . 10 11 Gun 98 | 7 60 14 14 . . . 3 Cannon 10 | . . 10 . . . . . Launcher 18 | . . . . . . 10 8 Special . | . . . . . . . . Kinetic 40 | . 30 . 7 . . . 3 Thermal 58 | 7 30 14 7 . . . . Explosive 18 | . . . . . . 10 8 Electromagnetic 10 | . . 10 . . . . . Robot Hit Streak 8 | 3 8 3 4 . . 3 2 Robot Miss Streak 3 | 2 2 3 3 . . 1 3 Penetration Max . | . . . . . . . . Secondary Targets 1 | . . 1 . . . . . Max Gunslinging Chain 1 | . . 1 . . . . . Shots Hit Robots 71 | 4 40 12 6 . . 5 4 Core Hits 50 | 2 17 7 3 . . 8 13 Critical Kills . | . . . . . . . . Critical Parts Destroyed . | . . . . . . . . Critical Strikes . | . . . . . . . . Melee Attacks . | . . . . . . . . Impact . | . . . . . . . . Slashing . | . . . . . . . . Piercing . | . . . . . . . . Sneak Attacks . | . . . . . . . . Combat Hostiles . | . . . . . . . . Follow-up Attacks . | . . . . . . . . Damage Inflicted 1739 | 46 492 187 65 . . 464 485 Guns 693 | 46 492 73 65 . . . 17 Cannons 114 | . . 114 . . . . . Explosions 932 | . . . . . . 464 468 Melee . | . . . . . . . . Ramming . | . . . . . . . . Kinetic 281 | . 231 . 33 . . . 17 Thermal 412 | 46 261 73 32 . . . . Explosive 932 | . . . . . . 464 468 Electromagnetic 114 | . . 114 . . . . . Impact . | . . . . . . . . Slashing . | . . . . . . . . Piercing . | . . . . . . . . Highest Corruption 2 | . . . . . . . 2 Average Corruption 2 | . . . . . . . 2 Corruption Purged . | . . . . . . . . Corruption Blocked . | . . . . . . . . Effects 1 | . . . . . . . 1 Matter Fused 1 | . . . . . . . 1 Overload Shots . | . . . . . . . . Overflow Damage 11 | . . . . . . 5 6 Projectiles . | . . . . . . . . Explosions 11 | . . . . . . 5 6 Melee . | . . . . . . . . Knockbacks . | . . . . . . . . Impact . | . . . . . . . . Kinetic . | . . . . . . . . Secondary . | . . . . . . . . Self-Inflicted Damage 83 | . . . . . . 38 45 Shots 2 | . . . . . . 1 1 Rammed . | . . . . . . . . Targets Rammed . | . . . . . . . . Kicked . | . . . . . . . . Crushed . | . . . . . . . . Highest Temperature 172 | . 54 153 172 . . 21 67 Average Temperature 44 | . 17 69 74 . . 12 35 Received Heat Transfer 534 | . 129 . 6 . . 54 345 Siege Activations . | . . . . . . . . Martial Activations . | . . . . . . . . Shielding Activations . | . . . . . . . . Robots Disrupted . | . . . . . . . . Combat Hostiles . | . . . . . . . . Robots Corrupted . | . . . . . . . . Combat Hostiles . | . . . . . . . . Parts Fried . | . . . . . . . . Impact Corruptions . | . . . . . . . . Robots Melted . | . . . . . . . . Combat Hostiles . | . . . . . . . . Parts Melted . | . . . . . . . . Heat Transferred 948 | 100 600 174 74 . . . . Parts Sabotaged . | . . . . . . . . Parts Stolen . | . . . . . . . . Parts Stripped . | . . . . . . . . Power Chain Reactions . | . . . . . . . . Alert | -11 -10 -10 -9 -9 -9 -8 -8 ------- Run | Yrd Mat Min Mat Min Exi Min Mat Maximum Alert Level 1 | . . . . . . . 1 Low Security (%) 97 | 100 100 100 100 100 . 100 80 Level 1 2 | . . . . . . . 19 Level 2 . | . . . . . . . . Level 3 . | . . . . . . . . Level 4 . | . . . . . . . . Level 5 . | . . . . . . . . High Security . | . . . . . . . . Max Security . | . . . . . . . . Peak Influence 304 | . 95 62 125 48 . 82 304 Initial 48 | . . 3 17 48 . . 24 Average 34 | . 51 10 74 30 . 31 82 Influence Increases 1030 | 5 187 140 138 . . 137 423 Destroy 0b10 Robot/C 420 | . 120 120 20 . . 80 80 Destroy 0b10 Robot/NC 35 | 5 20 . 5 . . . 5 Destroy Leader 84 | . 32 20 12 . . 20 . Allied During Kill 5 | . . . . . . 5 . Successful Hack 15 | . . . 11 . . . 4 Destroy Structure 81 | . . . . . . 32 49 Partial Spotted 45 | . . . 30 . . . 15 Lose Combat Pursuer 345 | . 15 . 60 . . . 270 Influence Decreases 726 | 5 177 104 59 117 8 75 181 Entered New Map 159 | . . 7 29 77 8 . 38 Time Decay 453 | 5 177 87 30 40 . 50 64 Lost Part 99 | . . 10 . . . 10 79 Lost Ally 15 | . . . . . . 15 . Squads Dispatched 4 | . 1 . . . . . 3 Investigation . | . . . . . . . . Extermination . | . . . . . . . . Reinforcement 4 | . 1 . . . . . 3 Assault . | . . . . . . . . Garrison . | . . . . . . . . Intercept . | . . . . . . . . Searches Triggered . | . . . . . . . . Construction Impeded . | . . . . . . . . Haulers Reinforced . | . . . . . . . . Active Scanning Responses . | . . . . . . . . Cargo Convoy Interrupts . | . . . . . . . . Stealth | -11 -10 -10 -9 -9 -9 -8 -8 --------- Run | Yrd Mat Min Mat Min Exi Min Mat Distress Signals 7 | . 2 . 1 1 . . 3 Communications Jammed . | . . . . . . . . Distress Signals . | . . . . . . . . Times Spotted 69 | . 16 7 9 . . 3 34 Peak Tracking Total 18 | . 6 3 5 . . 2 18 Tactical Retreats 9 | . 1 1 2 . . . 5 Traps | -11 -10 -10 -9 -9 -9 -8 -8 ------- Run | Yrd Mat Min Mat Min Exi Min Mat Traps Triggered 2 | . . . 1 . . . 1 Indirectly . | . . . . . . . . Trap Hack Attempts . | . . . . . . . . Triggered . | . . . . . . . . Disarmed . | . . . . . . . . Reprogrammed . | . . . . . . . . Reused . | . . . . . . . . Traps Extracted . | . . . . . . . . Installed . | . . . . . . . . Triggered . | . . . . . . . . Machines | -11 -10 -10 -9 -9 -9 -8 -8 ---------- Run | Yrd Mat Min Mat Min Exi Min Mat Machines Disabled . | . . . . . . . . Max in Single Turn . | . . . . . . . . Machines Repaired . | . . . . . . . . Machines Dismantled . | . . . . . . . . Machines Sabotaged . | . . . . . . . . Overloaded Fab Kills . | . . . . . . . . Hacking | -11 -10 -10 -9 -9 -9 -8 -8 --------- Run | Yrd Mat Min Mat Min Exi Min Mat Machines Accessed 14 | . 3 . 3 . 5 1 2 Terminals 8 | . 2 . 3 . . 1 2 Fabricators . | . . . . . . . . Repair Stations 1 | . 1 . . . . . . Recycling Units . | . . . . . . . . Scanalyzers . | . . . . . . . . Garrison Access . | . . . . . . . . Total Hacks 82 | . 7 . 14 . 50 4 7 Successful 70 | . 4 . 8 . 50 4 4 Failed 12 | . 3 . 6 . . . 3 Catastrophic . | . . . . . . . . Database Lockouts . | . . . . . . . . Manual 1 | . . . . . 1 . . Terminals 30 | . 5 . 14 . . 4 7 Fabricators . | . . . . . . . . Repair Stations 2 | . 2 . . . . . . Recycling Units . | . . . . . . . . Scanalyzers . | . . . . . . . . Garrison Access . | . . . . . . . . Terminal Hacks 68 | . 2 . 8 . 50 4 4 Record 56 | . . . 4 . 49 3 . Robot Analysis 1 | . 1 . . . . . . Branch Access Points 1 | . . . 1 . . . . Emergency Access Points 2 | . . . 2 . . . . Alert Level 1 | . . . . . . 1 . Locate Traps 3 | . 1 . 1 . . . 1 Investigation Status 1 | . . . . . . . 1 Hauler Manifests 1 | . . . . . . . 1 Zone Layout 1 | . . . . . . . 1 Proto ID Catalog 1 | . . . . . 1 . . Fabricator Hacks . | . . . . . . . . Repair Station Hacks 2 | . 2 . . . . . . Scan Component 1 | . 1 . . . . . . Repair 1 | . 1 . . . . . . Recycling Unit Hacks . | . . . . . . . . Scanalyzer . | . . . . . . . . Garrison Access Hacks . | . . . . . . . . Unauthorized Hacks . | . . . . . . . . Terminals . | . . . . . . . . Fabricators . | . . . . . . . . Repair Stations . | . . . . . . . . Recycling Units . | . . . . . . . . Scanalyzers . | . . . . . . . . Garrison Access . | . . . . . . . . Data Cores Recovered . | . . . . . . . . Used . | . . . . . . . . Hacking Detections 9 | . 3 . 3 . . 1 2 Full Trace Events . | . . . . . . . . Feedback Events . | . . . . . . . . Feedback Blocked . | . . . . . . . . Robot Schematics Acquired . | . . . . . . . . Robots Built . | . . . . . . . . Authchips . | . . . . . . . . Time . | . . . . . . . . Total Robot Build Rating . | . . . . . . . . Part Schematics Acquired . | . . . . . . . . Parts Built . | . . . . . . . . Authchips . | . . . . . . . . Time . | . . . . . . . . Total Part Build Rating . | . . . . . . . . Part Studies Acquired . | . . . . . . . . Parts Repaired 1 | . 1 . . . . . . Time 26 | . 26 . . . . . . Parts Recycled . | . . . . . . . . Recycled Matter . | . . . . . . . . Retrieved Matter . | . . . . . . . . Retrieved Components . | . . . . . . . . Parts Scanalyzed . | . . . . . . . . Part Schematics Acquired . | . . . . . . . . Parts Damaged . | . . . . . . . . Bothacking | -11 -10 -10 -9 -9 -9 -8 -8 ------------ Run | Yrd Mat Min Mat Min Exi Min Mat Used RIF Installer . | . . . . . . . . Robots Hacked . | . . . . . . . . Non-combat . | . . . . . . . . Combat . | . . . . . . . . Robot Hacks Applied . | . . . . . . . . Relay Couplers Released . | . . . . . . . . Fabnet Peak Effective % . | . . . . . . . . Robots Rewired . | . . . . . . . . Allies Hacked . | . . . . . . . . Hacks Repelled . | . . . . . . . . Allies | -11 -10 -10 -9 -9 -9 -8 -8 -------- Run | Yrd Mat Min Mat Min Exi Min Mat Total Allies 4 | . . 1 . 3 . . . Largest Group 3 | . . 1 . 3 3 3 . Highest-Rated Group 40 | . . 31 . 40 40 40 . Highest-Rated Ally 31 | . . 31 . 16 16 16 . Total Orders . | . . . . . . . . Ally Attacks 15 | . . 3 . . . 12 . Total Damage 153 | . . 22 . . . 131 . Kills 1 | . . . . . . 1 . Allies Corrupted . | . . . . . . . . Allies Melted . | . . . . . . . . Intel | -11 -10 -10 -9 -9 -9 -8 -8 ------- Run | Yrd Mat Min Mat Min Exi Min Mat Active Infowar (turns) 698 | . . 88 76 88 185 139 122 Optics 450 | . . . 35 88 185 139 3 Sensors 695 | . . 88 76 88 185 139 119 Robot Analysis Total 1 | . 1 . . . . . . Derelict Logs Recovered 2 | . . . . 2 . . . Drone Launches . | . . . . . . . . Drone Recoveries . | . . . . . . . . Exploration | -11 -10 -10 -9 -9 -9 -8 -8 ------------- Run | Yrd Mat Min Mat Min Exi Min Mat Turns Passed 1875 | 93 398 680 76 88 185 139 216 Spaces Moved 2077 | 41 137 512 139 204 434 242 368 Core 8 | 3 . . . . . . 5 Treads 384 | 38 137 209 . . . . . Legs . | . . . . . . . . Wheels . | . . . . . . . . Hover . | . . . . . . . . Flight 1685 | . . 303 139 204 434 242 363 Fastest Speed 31 | 50 160 37 31 31 31 31 32 Average Speed 67 | 151 180 119 32 31 31 32 45 Slowest Speed 240 | 160 240 240 37 31 31 34 195 Overloaded Moves . | . . . . . . . . Propulsion Burnouts . | . . . . . . . . Robots Hopped 13 | . . 1 . . . 4 8 Potential Cave-ins . | . . . . . . . . Cave-ins Triggered . | . . . . . . . . Exploration Rate (%) 42 | 4 25 75 17 40 93 41 45 Regions Visited 7 Branch Regions 4 Pre-discovered Areas 2 | . . . . 1 1 . . Known Exits Taken 1 | . . . 1 . . . . Unknown Exits Taken 6 | 1 1 1 . 1 1 1 . Scrap Searched 3 | . . 1 . 1 . 1 . Spaces Dug 12 | . . . . . . . 12 Terrain Destroyed 120 | . . . . . . 43 77 Melee . | . . . . . . . . Projectile . | . . . . . . . . AOE 120 | . . . . . . 43 77 Terrain Rammed . | . . . . . . . . Walls Destroyed . | . . . . . . . . Machines Disabled . | . . . . . . . . Actions | -11 -10 -10 -9 -9 -9 -8 -8 --------- Run | Yrd Mat Min Mat Min Exi Min Mat Total 2404 | 64 229 554 156 228 485 291 397 Wait 141 | . 35 5 2 25 40 33 1 Move 2045 | 40 136 509 138 203 433 233 353 Hop 12 | . . 1 . . . 4 7 Pick Up 48 | 10 16 5 2 . 3 4 8 Fast Attach 13 | 1 2 2 3 . . . 5 Attach 18 | 6 . 2 1 . 2 1 6 Detach 4 | . . . . . . . 4 Swap 15 | . 4 5 1 . 2 2 1 Drop 28 | . 6 10 2 . 5 4 1 Fire 80 | 7 30 15 7 . . 10 11 Melee . | . . . . . . . . Ram . | . . . . . . . . Kick . | . . . . . . . . Crush . | . . . . . . . . Escape Stasis . | . . . . . . . . Rewire . | . . . . . . . . Trap . | . . . . . . . . Miscellaneous . | . . . . . . . . Route ------- -11/Scrapyard -10/Materials -10/Mines (discovered 2 exits: *Mat x2) -9/Materials -9/Mines -9/Exiles (discovered 2 exits: *Min x2) -8/Mines -8/Materials (discovered 1 exit: [*Sto]) History --------- Turn | Location | Event 15 | -11/Scrapyard | Discovered new exit (range 15) 94 | -11/Scrapyard | Entered Materials 309 | -10/Materials | Build established: Mutant 407 | -10/Materials | Discovered new exit (range 16) 455 | -10/Materials | Repaired Lgt. Treads 492 | -10/Materials | Entered Mines 584 | -10/Mines | Discovered new exit (range 4) 714 | -10/Mines | YI-UF0 nonchalantly dropped a Grenade Launcher on the ground 955 | -10/Mines | Core integrity fell below 50% 962 | -10/Mines | Core integrity fell below 20% 1064 | -10/Mines | Received a Mining Laser from a helpful Derelict 1083 | -10/Mines | Found a damaged Exp. Sensor Array with a note attached 1084 | -10/Mines | Found Prototype Device 1084 | -10/Mines | Identified Exp. Sensor Array 1160 | -10/Mines | Discovered new exit (range 9) 1172 | -10/Mines | Entered Materials 1172 | -9/Materials | Evolved 2 slots: Propulsion x2 1233 | -9/Materials | Discovered new exit (range 17) 1235 | -9/Materials | Identified exit to Mines 1248 | -9/Materials | Entered Mines 1281 | -9/Mines | Assisted by bots powering up and referring to "LRC-V3" 1282 | -9/Mines | Assembled infested the area 1282 | -9/Mines | Learned location of Zion (-7) 1293 | -9/Mines | Deemed a non-threat by the Exiles lab entrance 1293 | -9/Mines | Discovered new exit (range 5) 1336 | -9/Mines | Entered Exiles 1336 | -9/Exiles | Accompanied by 3 allies 1344 | -9/Exiles | Discovered new exit (range 17) 1354 | -9/Exiles | Met 8R-AWN 1359 | -9/Exiles | Met EX-HEX 1367 | -9/Exiles | Met EX-BIN 1372 | -9/Exiles | Aligned with FarCom system 1372 | -9/Exiles | Given EX-Vault access code 1385 | -9/Exiles | Opened EX-Vault 1387 | -9/Exiles | Found Prototype Energy Cannon 1388 | -9/Exiles | Identified Latent Energy Streamer 1393 | -9/Exiles | Found Prototype Storage 1395 | -9/Exiles | Identified Lightpack 2.0 1408 | -9/Exiles | Warned to stay clear of 0b10 Research branches 1416 | -9/Exiles | Met EX-DEC 1427 | -9/Exiles | Visited The Gauntlet 1478 | -9/Exiles | Discovered new exit (range 10) 1498 | -9/Exiles | Build established: Scavenger-Sprinter 1521 | -9/Exiles | Left Exiles lab with Lightpack 2.0 1521 | -9/Exiles | Entered Mines 1521 | -8/Mines | Accompanied by 3 allies 1605 | -8/Mines | Lost 3 allies 1655 | -8/Mines | Discovered new exit (range 8) 1660 | -8/Mines | Entered Materials 1660 | -8/Materials | Evolved 2 slots: Utility x2 1772 | -8/Materials | Discovered new exit (range 7) 1779 | -8/Materials | Lost 3 parts (2p1n) 1845 | -8/Materials | Core integrity fell below 50% 1871 | -8/Materials | Core integrity fell below 20% 1876 | -8/Materials | Destroyed by H-55 Commando with Assault Rifle Last Messages --------------- 01861_ Imp. VTOL Module destroyed. 01862_ Penetrated by Slug. 01862_ Lgt. Nuclear Core destroyed. 01863_ U-05 Engineer builds a Wall. 01864_ Acquired Surge Thruster. 01865_ The unstable cave ceiling collapses. 01865_ M-13 Machinist repairs G-50 Soldier. 01865_ VTOL Module destroyed. 01867_ U-05 Engineer lays Concrete. 01868_ Penetrated by Slug. 01868_ Knocked back. 01868_ U-05 Engineer builds a Door. 01870_ Surge Thruster destroyed. 01870_ Penetrated by Slug. 01870_ U-05 Engineer lays Concrete. 01871_ U-05 Engineer builds a Wall. 01872_ U-05 Engineer destroyed. 01873_ Slug penetrates Wall. 01873_ U-05 Engineer lays Concrete. 01876_ Penetrated by Slug. Map ----- +----------------------------------------------------+ | ?????????????????????????????????????????????????? | | ?????????????????????????????????????????????????? | | ?????????????????????????????????????????????????? | | ?????????????????????????????????????????????????? | | ?????????????????????????????????????????????????? | | ?????????????????????????????????????????????????? | | ?????????????????????????????????????????????????? | | ?????????????????????????????????????????????????? | | ?????????????????????????????????????????????????? | | ?????????????????????????????????????????????????? | | ?????????????????????????????????????????????????? | | ?????????????????????????????????????????????????? | | ?????????????????????????????????????????????????? | | ????????????????????????????????????Y????????????? | | ?????????????????????????????????????????????????? | | ##?????????????????? ? ????????????????????????? | | #????????????????? ? ????????????????????????? | | #????????????????# ? ????????????????????????? | | #????????????????# ? ????????????????????????? | | #????????????????# ? ????????????????????????? | | [#????????????????# ? ????????????????????????? | | #????????????????# *# ????????????????????????? | | ##???????????????## #????????????????????????? | | ?????????????????#= % #################+#######?? | | ????????????????## % ? | | ????????????????##